fUST/lending_fUST_20250719
["ID","MTS","AMOUNT","RATE_DAILY","PERIOD"]
[373118378,1752867049335,-151.0,0.00018987,2]
[373118379,1752867049344,-460.0,0.00018987,2]
[373118382,1752867049353,-460.0,0.00018987,2]
[373118384,1752867049364,-460.0,0.00018987,2]
[373118386,1752867049373,-762.37,0.00018987,2]
[373118388,1752867049383,-2941.49,0.00018987,2]
[373118390,1752867049392,-687.97,0.00018987,2]
[373118392,1752867049402,-460.0,0.00018987,2]
[373118394,1752867049411,-1103.03,0.00018987,2]
[373118396,1752867049420,-1354.93,0.00018987,2]
[373118398,1752867049429,-460.0,0.00018988,2]
[373118400,1752867049438,-1078.04,0.00018988,2]
[373118402,1752867049448,-2226.2,0.00018988,2]
[373118404,1752867049457,-855.03,0.00018988,2]
[373118406,1752867049467,-151.0,0.00018989,2]
[373118408,1752867049476,-22534.11843379,0.00019,2]
[373118410,1752867049485,-234.545112,0.00019,2]
[373118412,1752867049494,-165.98517,0.00019,2]
[373118414,1752867049505,-165.98517,0.00019,2]
[373118416,1752867049515,-151.0,0.00019,2]
[373118418,1752867049524,-151.0,0.00019,2]
[373118420,1752867049533,-196.369406,0.00019,2]
[373118422,1752867049542,-1434.13028282,0.00019003,2]
[373118424,1752867049553,-500.0,0.00019087,2]
[373118426,1752867049562,-500.0,0.00019087,2]
[373118428,1752867049572,-151.0,0.00019088,2]
[373118429,1752867049582,-151.0,0.00019089,2]
[373118432,1752867049591,-151.0,0.0001909,2]
[373118433,1752867049601,-151.0,0.0001909,2]
[373118435,1752867049610,-151.932486,0.0001909,2]
[373118437,1752867049619,-151.0,0.0001909,2]
[373118440,1752867049628,-153.0,0.00019151,2]
[373118441,1752867049637,-153.0,0.00019151,2]
[373118443,1752867049647,-153.0,0.00019151,2]
[373118446,1752867049657,-153.0,0.00019151,2]
[373118448,1752867049666,-153.0,0.00019151,2]
[373118450,1752867049675,-220.518607,0.00019151,2]
[373118452,1752867049684,-220.518607,0.00019151,2]
[373118454,1752867049694,-283.239906,0.00019151,2]
[373118456,1752867049703,-500.0,0.00019153,2]
[373118458,1752867049712,-151.0,0.00019178,2]
[373118460,1752867049722,-183.089238,0.00019178,2]
[373118462,1752867049732,-223.87291385,0.00019178,2]
[373118464,1752867049741,-183.089238,0.00019178,2]
[373118465,1752867049754,-5000.0,0.00019178,2]
[373118467,1752867049765,-666.0,0.00019178,2]
[373118469,1752867049774,-306.085075,0.00019178,2]
[373118471,1752867049783,-652.046,0.00019246,2]
[373118473,1752867049793,-501.46377135,0.00019252,2]
[373118475,1752867049802,-500.0,0.00019252,2]
[373118477,1752867049811,-500.0,0.00019252,2]
[373118479,1752867049821,-500.0,0.00019252,2]
[373118481,1752867049833,-500.0,0.00019252,2]
[373118483,1752867049843,-500.0,0.00019252,2]
[373118485,1752867049853,-500.0,0.00019252,2]
[373118487,1752867049862,-223.48338086,0.00019252,2]
[373118489,1752867049871,-500.0,0.00019252,2]
[373118491,1752867049881,-500.0,0.00019252,2]
[373118493,1752867049890,-617.91842792,0.00019252,2]
[373118495,1752867049900,-500.0,0.00019252,2]
[373118497,1752867049910,-500.0,0.00019252,2]
[373118499,1752867049920,-500.0,0.00019252,2]
[373118501,1752867049928,-500.0,0.00019252,2]
[373118503,1752867049938,-500.0,0.00019252,2]
[373118505,1752867049947,-500.0,0.00019252,2]
[373118507,1752867049956,-644.0334221,0.00019252,2]
[373118509,1752867049965,-500.0,0.00019252,2]
[373118511,1752867049975,-500.0,0.00019252,2]
[373118513,1752867049984,-500.0,0.00019252,2]
[373118515,1752867049993,-1021.49,0.00019258,2]
[373118516,1752867050007,-460.0,0.00019259,2]
[373118518,1752867050016,-2546.09,0.00019259,2]
[373118520,1752867050025,-1405.34,0.00019259,2]
[373118522,1752867050035,-460.0,0.00019259,2]
[373118524,1752867050045,-543.83,0.00019259,2]
[373118527,1752867050054,-1261.52,0.00019259,2]
[373118529,1752867050064,-460.0,0.00019259,2]
[373118531,1752867050073,-1242.65,0.00019259,2]
[373118532,1752867050082,-460.0,0.00019259,2]
[373118534,1752867050091,-752.34,0.00019259,2]
[373118536,1752867050100,-715.21,0.00019259,2]
[373118538,1752867050110,-460.0,0.00019259,2]
[373118540,1752867050119,-473.66,0.00019259,2]
[373118542,1752867050128,-460.0,0.00019259,2]
[373118544,1752867050138,-460.0,0.00019259,2]
[373118546,1752867050147,-483.52,0.00019259,2]
[373118548,1752867050157,-460.0,0.0001926,2]
[373118551,1752867050167,-151.0,0.0001926,2]
[373118552,1752867050176,-527.96,0.0001926,2]
[373118554,1752867050185,-460.0,0.0001926,2]
[373118556,1752867050194,-567.71,0.0001926,2]
[373118559,1752867050204,-456.86,0.0001926,2]
[373118560,1752867050213,-460.0,0.0001926,2]
[373118562,1752867050223,-689.16,0.0001926,2]
[373118564,1752867050232,-460.0,0.0001926,2]
[373118567,1752867050241,-797.37,0.0001926,2]
[373118569,1752867050254,-460.0,0.0001926,2]
[373118571,1752867050263,-460.0,0.0001926,2]
[373118573,1752867050273,-460.0,0.0001926,2]
[373118575,1752867050282,-151.0,0.00019261,2]
[373118577,1752867050291,-151.0,0.00019261,2]
[373118579,1752867050302,-151.0,0.00019261,2]
[373118581,1752867050312,-151.0,0.00019261,2]
[373118583,1752867050321,-151.0,0.00019261,2]
[373118585,1752867050330,-67.44130301,0.00019261,2]
[373118595,1752867050419,-113.48991299,0.00019261,2]
[373118597,1752867050428,-346.51008701,0.00019261,2]
[373118616,1752867050594,-460.0,0.0001652,2]
[373118618,1752867050605,-460.0,0.00016793,2]
[373118620,1752867050614,-460.0,0.00016794,2]
[373118622,1752867050623,-460.0,0.00017067,2]
[373118624,1752867050633,-460.0,0.00017341,2]
[373118626,1752867050643,-460.0,0.00017615,2]
[373118628,1752867050652,-460.0,0.00017889,2]
[373118630,1752867050662,-460.0,0.00018163,2]
[373118632,1752867050672,-460.0,0.00018437,2]
[373118635,1752867050681,-460.0,0.00018711,2]
[373118637,1752867050691,-460.0,0.00018711,2]
[373118639,1752867050700,-460.0,0.00018985,2]
[373118641,1752867050709,-315.12489704,0.00018985,2]
[373118643,1752867050719,-460.0,0.00019259,2]
[373118645,1752867050728,-113.48991299,0.00019261,2]
[373118647,1752867050737,-460.0,0.00019261,2]
[373118649,1752867050748,-460.0,0.00019261,2]
[373118651,1752867050763,-762.37,0.00019261,2]
[373118653,1752867050772,-2941.49,0.00019261,2]
[373118655,1752867050782,-687.97,0.00019261,2]
[373118657,1752867050791,-460.0,0.00019261,2]
[373118659,1752867050801,-1103.03,0.00019261,2]
[373118661,1752867050811,-1354.93,0.00019261,2]
[373118663,1752867050820,-151.0,0.00019262,2]
[373118665,1752867050831,-460.0,0.00019262,2]
[373118667,1752867050841,-1078.04,0.00019262,2]
[373118669,1752867050850,-778.27061449,0.00019262,2]
[373118672,1752867050862,-1447.92938551,0.00019262,2]
[373118673,1752867050870,-855.03,0.00019262,2]
[373118676,1752867050880,-500.0,0.00019265,2]
[373118677,1752867050889,-500.0,0.00019265,2]
[373118680,1752867050898,-500.0,0.00019265,2]
[373118682,1752867050908,-500.0,0.00019265,2]
[373118684,1752867050918,-553.09417526,0.00019265,2]
[373118686,1752867050927,-500.0,0.00019265,2]
[373118688,1752867050936,-503.93358597,0.00019265,2]
[373118689,1752867050945,-317.46934266,0.00019265,2]
[373118701,1752867051033,-1434.13028282,0.00019279,2]
[373118704,1752867051056,-500.0,0.00019286,2]
[373118706,1752867051065,-460.0,0.00019297,2]
[373118708,1752867051074,-151.0,0.00019329,2]
[373118710,1752867051083,-8157.33118936,0.00019329,2]
[373118712,1752867051092,-500.0,0.00019361,2]
[373118714,1752867051101,-500.0,0.00019361,2]
[373118716,1752867051111,-165.98517,0.00019363,2]
[373118718,1752867051121,-165.98517,0.00019363,2]
[373118720,1752867051129,-151.0,0.00019363,2]
[373118722,1752867051139,-290.716362,0.00019363,2]
[373118723,1752867051148,-291.6857558,0.00019374,2]
[373118726,1752867051157,-500.0,0.00019374,2]
[373118728,1752867051166,-1021.49,0.00019532,2]
[373118729,1752867051176,-515.49977529,0.00019533,2]
[373118731,1752867051185,-2546.09,0.00019533,2]
[373118734,1752867051194,-1405.34,0.00019533,2]
[373118736,1752867051204,-460.0,0.00019533,2]
[373118738,1752867051214,-543.83,0.00019533,2]
[373118740,1752867051223,-1261.52,0.00019533,2]
[373118742,1752867051231,-460.0,0.00019533,2]
[373118744,1752867051241,-1242.65,0.00019533,2]
[373118746,1752867051253,-460.0,0.00019533,2]
[373118748,1752867051263,-752.34,0.00019533,2]
[373118750,1752867051272,-715.21,0.00019533,2]
[373118752,1752867051281,-460.0,0.00019533,2]
[373118754,1752867051291,-473.66,0.00019533,2]
[373118755,1752867051300,-460.0,0.00019533,2]
[373118757,1752867051309,-460.0,0.00019533,2]
[373118759,1752867051319,-483.52,0.00019533,2]
[373118761,1752867051328,-460.0,0.00019533,2]
[373118763,1752867051338,-460.0,0.00019534,2]
[373118766,1752867051348,-527.96,0.00019534,2]
[373118767,1752867051357,-460.0,0.00019534,2]
[373118770,1752867051366,-183.089238,0.00019534,2]
[373118771,1752867051375,-183.089238,0.00019534,2]
[373118774,1752867051385,-567.71,0.00019534,2]
[373118776,1752867051395,-460.0,0.00019534,2]
[373118778,1752867051404,-689.16,0.00019534,2]
[373118780,1752867051413,-460.0,0.00019534,2]
[373118782,1752867051422,-797.37,0.00019534,2]
[373118784,1752867051432,-460.0,0.00019534,2]
[373118785,1752867051441,-460.0,0.00019534,2]
[373118786,1752867051451,-460.0,0.00019534,2]
[373118787,1752867051460,-220.518607,0.00019535,2]
[373118788,1752867051470,-220.518607,0.00019535,2]
[373118789,1752867051479,-311.93,0.00019535,2]
[373118790,1752867051489,-460.0,0.00019535,2]
[373118791,1752867051498,-460.0,0.00019535,2]
[373118792,1752867051508,-762.37,0.00019535,2]
[373118793,1752867051517,-2941.49,0.00019535,2]
[373118794,1752867051527,-687.97,0.00019535,2]
[373118795,1752867051536,-265.80337298,0.00019535,2]
[373118796,1752867051545,-1103.03,0.00019535,2]
[373118797,1752867051554,-1354.93,0.00019535,2]
[373118799,1752867051564,-151.0,0.00019536,2]
[373118801,1752867051573,-151.0,0.00019536,2]
[373118803,1752867051582,-151.0,0.00019536,2]
[373118805,1752867051592,-460.0,0.00019536,2]
[373118807,1752867051601,-2226.2,0.00019536,2]
[373118809,1752867051611,-855.03,0.00019536,2]
[373118811,1752867051620,-179.596256,0.00019555,2]
[373118813,1752867051629,-151.0,0.00019555,2]
[373118815,1752867051638,-209.873455,0.00019555,2]
[373118817,1752867051647,-151.0,0.00019555,2]
[373118819,1752867051656,-1434.13028282,0.00019555,2]
[373118821,1752867051666,-1664.50815631,0.00019571,2]
[373118823,1752867051675,-151.0,0.0001961,2]
[373118825,1752867051685,-500.0,0.00019622,2]
[373118827,1752867051694,-500.0,0.00019635,2]
[373118829,1752867051703,-210.59339304,0.00019635,2]
[373118831,1752867051713,-500.0,0.00019642,2]
[373118833,1752867051723,-577.0505339,0.00019671,2]
[373118835,1752867051732,-500.0,0.00019676,2]
[373118837,1752867051742,-500.0,0.00019676,2]
[373118839,1752867051758,-500.0,0.00019695,2]
[373118841,1752867051770,-504.32043466,0.00019695,2]
[373118843,1752867051780,-500.0,0.00019695,2]
[373118845,1752867051789,-429.318869,0.00019699,2]
[373118847,1752867051799,-429.318869,0.00019699,2]
[373118849,1752867051808,-429.318869,0.00019699,2]
[373118851,1752867051817,-429.318869,0.00019699,2]
[373118853,1752867051828,-2156.0,0.0001972,2]
[373118855,1752867051839,-968.0,0.0001972,2]
[373118857,1752867051848,-407.0,0.0001972,2]
[373118859,1752867051858,-587.0,0.00019723,2]
[373118861,1752867051868,-150.0,0.00019744,2]
[373118863,1752867051877,-150.169,0.00019744,2]
[373118865,1752867051887,-224.39,0.00019744,2]
[373118867,1752867051898,-216.543,0.00019744,2]
[373118869,1752867051908,-271.62,0.00019744,2]
[373118871,1752867051918,-250.0,0.00019744,2]
[373118873,1752867051928,-150.584,0.00019744,2]
[373118875,1752867051937,-259.894,0.00019744,2]
[373118877,1752867051946,-218.2,0.00019744,2]
[373118879,1752867051956,-500.0,0.00019745,2]
[373118881,1752867051966,-500.0,0.00019745,2]
[373118883,1752867051975,-500.0,0.00019745,2]
[373118885,1752867051985,-511.56659802,0.000198,2]
[373118887,1752867051996,-500.0,0.000198,2]
[373118889,1752867052008,-501.26367768,0.000198,2]
[373118892,1752867052019,-500.85686421,0.000198,2]
[373118893,1752867052028,-500.0,0.000198,2]
[373118896,1752867052038,-1047.47244374,0.000198,2]
[373118897,1752867052048,-500.0,0.000198,2]
[373118899,1752867052057,-501.33414174,0.000198,2]
[373118901,1752867052066,-1021.49,0.00019806,2]
[373118903,1752867052076,-2546.09,0.00019807,2]
[373118906,1752867052085,-1405.34,0.00019807,2]
[373118907,1752867052095,-460.0,0.00019807,2]
[373118909,1752867052104,-543.83,0.00019807,2]
[373118912,1752867052114,-1261.52,0.00019807,2]
[373118913,1752867052123,-460.0,0.00019807,2]
[373118915,1752867052132,-648.02636974,0.00019807,2]
[373118918,1752867052146,-594.62363026,0.00019807,2]
[373118920,1752867052155,-550.6892542,0.00019807,2]
[373118922,1752867052165,-752.34,0.00019807,2]
[373118924,1752867052174,-715.21,0.00019807,2]
[373118926,1752867052184,-460.0,0.00019807,2]
[373118928,1752867052194,-473.66,0.00019807,2]
[373118930,1752867052203,-460.0,0.00019807,2]
[373118932,1752867052214,-460.0,0.00019807,2]
[373118934,1752867052224,-85.34697086,0.00019807,2]
[373118936,1752867052235,-398.17302914,0.00019807,2]
[373118938,1752867052245,-460.0,0.00019807,2]
[373118940,1752867052255,-460.0,0.00019808,2]
[373118942,1752867052265,-527.96,0.00019808,2]
[373118944,1752867052274,-460.0,0.00019808,2]
[373118946,1752867052284,-567.71,0.00019808,2]
[373118948,1752867052294,-460.0,0.00019808,2]
[373118950,1752867052304,-689.16,0.00019808,2]
[373118952,1752867052313,-460.0,0.00019808,2]
[373118954,1752867052322,-797.37,0.00019808,2]
[373118956,1752867052331,-460.0,0.00019808,2]
[373118958,1752867052341,-460.0,0.00019808,2]
[373118960,1752867052351,-460.0,0.00019808,2]
[373118962,1752867052360,-220.518607,0.00019809,2]
[373118964,1752867052369,-220.518607,0.00019809,2]
[373118966,1752867052378,-151.0,0.00019809,2]
[373118968,1752867052387,-460.0,0.00019809,2]
[373118970,1752867052397,-169.97215349,0.00019809,2]
[373118972,1752867052406,-762.37,0.00019809,2]
[373118974,1752867052415,-2941.49,0.00019809,2]
[373118976,1752867052425,-687.97,0.00019809,2]
[373118978,1752867052434,-1103.03,0.00019809,2]
[373118980,1752867052444,-1354.93,0.00019809,2]
[373118982,1752867052453,-165.98517,0.0001981,2]
[373118984,1752867052462,-112.65225769,0.0001981,2]
[373118986,1752867052474,-53.33291231,0.0001981,2]
[373118988,1752867052483,-151.0,0.0001981,2]
[373118990,1752867052492,-460.0,0.0001981,2]
[373118992,1752867052504,-183.089238,0.0001981,2]
[373118994,1752867052514,-183.089238,0.0001981,2]
[373118996,1752867052524,-550.70491899,0.0001981,2]
[373119115,1752867053975,-1675.49508101,0.0001981,2]
[373119117,1752867053984,-855.03,0.0001981,2]
[373119119,1752867053994,-151.0,0.00019811,2]
[373119121,1752867054006,-500.0,0.00019813,2]
[373119123,1752867054015,-500.0,0.00019813,2]
[373119125,1752867054024,-500.0,0.00019813,2]
[373119127,1752867054033,-1434.13028282,0.00019831,2]
[373119129,1752867054042,-560.0,0.00019845,2]
[373119131,1752867054051,-223.0315306,0.00019908,2]
[373119133,1752867054061,-500.0,0.00019909,2]
[373119135,1752867054070,-151.0,0.00019909,2]
[373119137,1752867054079,-151.0,0.0001991,2]
[373119139,1752867054088,-238.215153,0.00019911,2]
[373119141,1752867054098,-151.0,0.00019911,2]
[373119143,1752867054107,-762.34660236,0.00019922,2]
[373119145,1752867054116,-1021.49,0.0002008,2]
[373119147,1752867054126,-2546.09,0.00020081,2]
[373119149,1752867054135,-1405.34,0.00020081,2]
[373119151,1752867054144,-460.0,0.00020081,2]
[373119153,1752867054153,-543.83,0.00020081,2]
[373119155,1752867054163,-1261.52,0.00020081,2]
[373119157,1752867054172,-460.0,0.00020081,2]
[373119159,1752867054181,-1242.65,0.00020081,2]
[373119161,1752867054190,-752.34,0.00020081,2]
[373119163,1752867054199,-715.21,0.00020081,2]
[373119165,1752867054209,-460.0,0.00020081,2]
[373119167,1752867054218,-473.66,0.00020081,2]
[373119169,1752867054227,-460.0,0.00020081,2]
[373119170,1752867054237,-460.0,0.00020081,2]
[373119172,1752867054246,-483.52,0.00020081,2]
[373119174,1752867054257,-460.0,0.00020081,2]
[373119176,1752867054267,-460.0,0.00020082,2]
[373119179,1752867054276,-151.0,0.00020082,2]
[373119180,1752867054285,-527.96,0.00020082,2]
[373119182,1752867054294,-460.0,0.00020082,2]
[373119184,1752867054303,-567.71,0.00020082,2]
[373119186,1752867054314,-460.0,0.00020082,2]
[373119188,1752867054323,-689.16,0.00020082,2]
[373119190,1752867054332,-460.0,0.00020082,2]
[373119192,1752867054342,-797.37,0.00020082,2]
[373119194,1752867054352,-460.0,0.00020082,2]
[373119196,1752867054362,-460.0,0.00020082,2]
[373119198,1752867054371,-460.0,0.00020082,2]
[373119200,1752867054382,-151.0,0.00020083,2]
[373119202,1752867054392,-460.95222348,0.00020083,2]
[373119204,1752867054401,-762.37,0.00020083,2]
[373119206,1752867054411,-2941.49,0.00020083,2]
[373119208,1752867054420,-687.97,0.00020083,2]
[373119210,1752867054430,-1103.03,0.00020083,2]
[373119212,1752867054439,-1354.93,0.00020083,2]
[373119214,1752867054449,-460.0,0.00020084,2]
[373119216,1752867054458,-2226.2,0.00020084,2]
[373119218,1752867054468,-855.03,0.00020084,2]
[373119220,1752867054477,-1434.13028282,0.00020107,2]
[373119222,1752867054486,-386.5810633,0.00020136,2]
[373119224,1752867054496,-500.0,0.00020183,2]
[373119226,1752867054509,-430.841256,0.00020187,2]
[373119228,1752867054518,-1000.0,0.00020224,2]
[373119230,1752867054527,-960.90080609,0.00020233,2]
[373119232,1752867054537,-1000.0,0.00020293,2]
[373119234,1752867054546,-502.99859168,0.00020293,2]
[373119236,1752867054556,-192.77584648,0.00020293,2]
[373119238,1752867054566,-220.518607,0.00020294,2]
[373119240,1752867054576,-220.518614,0.00020294,2]
[373119242,1752867054585,-165.98517,0.00020332,2]
[373119244,1752867054594,-165.98517,0.00020332,2]
[373119246,1752867054603,-151.0,0.00020332,2]
[373119248,1752867054613,-1021.49,0.00020354,2]
[373119250,1752867054622,-2546.09,0.00020355,2]
[373119252,1752867054631,-1405.34,0.00020355,2]
[373119254,1752867054641,-460.0,0.00020355,2]
[373119256,1752867054651,-543.83,0.00020355,2]
[373119258,1752867054661,-1261.52,0.00020355,2]
[373119260,1752867054671,-460.0,0.00020355,2]
[373119262,1752867054681,-1242.65,0.00020355,2]
[373119264,1752867054690,-752.34,0.00020355,2]
[373119266,1752867054700,-715.21,0.00020355,2]
[373119268,1752867054710,-460.0,0.00020355,2]
[373119270,1752867054719,-473.66,0.00020355,2]
[373119272,1752867054728,-460.0,0.00020355,2]
[373119274,1752867054738,-460.0,0.00020355,2]
[373119276,1752867054748,-483.52,0.00020355,2]
[373119278,1752867054763,-460.0,0.00020355,2]
[373119280,1752867054772,-460.0,0.00020356,2]
[373119282,1752867054782,-527.96,0.00020356,2]
[373119284,1752867054791,-460.0,0.00020356,2]
[373119286,1752867054801,-567.71,0.00020356,2]
[373119288,1752867054811,-460.0,0.00020356,2]
[373119290,1752867054820,-689.16,0.00020356,2]
[373119292,1752867054830,-460.0,0.00020356,2]
[373119294,1752867054840,-797.37,0.00020356,2]
[373119296,1752867054849,-460.0,0.00020356,2]
[373119298,1752867054860,-460.0,0.00020356,2]
[373119300,1752867054869,-460.0,0.00020356,2]
[373119302,1752867054879,-151.0,0.00020357,2]
[373119304,1752867054888,-183.089238,0.00020357,2]
[373119306,1752867054897,-183.089238,0.00020357,2]
[373119308,1752867054907,-762.37,0.00020357,2]
[373119310,1752867054916,-2941.49,0.00020357,2]
[373119312,1752867054926,-687.97,0.00020357,2]
[373119314,1752867054935,-1103.03,0.00020357,2]
[373119316,1752867054944,-1354.93,0.00020357,2]
[373119318,1752867054953,-291.594032,0.00020358,2]
[373119320,1752867054962,-460.0,0.00020358,2]
[373119321,1752867054972,-2226.2,0.00020358,2]
[373119324,1752867054982,-855.03,0.00020358,2]
[373119326,1752867054991,-1434.13028282,0.00020383,3]
[373119327,1752867055002,-151.0,0.00020383,2]
[373119329,1752867055012,-151.0,0.00020383,2]
[373119331,1752867055022,-660.0,0.00020393,2]
[373119333,1752867055031,-1677.0,0.00020399,2]
[373119336,1752867055041,-1677.0,0.00020455,2]
[373119337,1752867055051,-319.57682181,0.00020457,2]
[373119339,1752867055060,-151.0,0.0002046,2]
[373119341,1752867055069,-1677.0,0.00020462,2]
[373119343,1752867055078,-500.0,0.00020464,2]
[373119345,1752867055088,-1677.0,0.00020467,2]
[373119347,1752867055097,-1677.0,0.0002052,2]
[373119358,1752867055192,-356.1611332,0.00020521,2]
[373119360,1752867055202,-356.9960021,0.00020521,2]
[373119362,1752867055211,-577.0505339,0.00020521,2]
[373119364,1752867055221,-577.0505339,0.00020521,2]
[373119366,1752867055230,-467.8311013,0.00020521,2]
[373119368,1752867055240,-1677.0,0.00020527,2]
[373119370,1752867055249,-1677.0,0.00020568,2]
[373119372,1752867055261,-151.0,0.00020568,2]
[373119374,1752867055271,-963.27781634,0.00020572,2]
[373119376,1752867055280,-1021.49,0.00020628,2]
[373119378,1752867055289,-2546.09,0.00020629,2]
[373119380,1752867055299,-1405.34,0.00020629,2]
[373119382,1752867055308,-460.0,0.00020629,2]
[373119384,1752867055318,-543.83,0.00020629,2]
[373119386,1752867055327,-1261.52,0.00020629,2]
[373119388,1752867055337,-285.41,0.00020629,2]
[373119390,1752867055346,-1242.65,0.00020629,2]
[373119392,1752867055356,-752.34,0.00020629,2]
[373119394,1752867055365,-715.21,0.00020629,2]
[373119396,1752867055374,-460.0,0.00020629,2]
[373119398,1752867055384,-473.66,0.00020629,2]
[373119400,1752867055394,-460.0,0.00020629,2]
[373119402,1752867055403,-460.0,0.00020629,2]
[373119404,1752867055413,-483.52,0.00020629,2]
[373119406,1752867055423,-237.02,0.00020629,2]
[373119408,1752867055432,-1677.0,0.00020629,2]
[373119410,1752867055442,-460.0,0.0002063,2]
[373119412,1752867055451,-527.96,0.0002063,2]
[373119414,1752867055460,-460.0,0.0002063,2]
[373119416,1752867055470,-567.71,0.0002063,2]
[373119418,1752867055480,-460.0,0.0002063,2]
[373119420,1752867055489,-689.16,0.0002063,2]
[373119422,1752867055498,-460.0,0.0002063,2]
[373119424,1752867055510,-797.37,0.0002063,2]
[373119426,1752867055520,-460.0,0.0002063,2]
[373119428,1752867055529,-460.0,0.0002063,2]
[373119430,1752867055538,-460.0,0.0002063,2]
[373119432,1752867055548,-762.37,0.00020631,2]
[373119434,1752867055557,-2941.49,0.00020631,2]
[373119436,1752867055567,-687.97,0.00020631,2]
[373119438,1752867055576,-1103.03,0.00020631,2]
[373119440,1752867055585,-1354.93,0.00020631,2]
[373119442,1752867055595,-460.0,0.00020632,2]
[373119444,1752867055603,-2226.2,0.00020632,2]
[373119446,1752867055613,-855.03,0.00020632,2]
[373119448,1752867055622,-165.98517,0.00020633,2]
[373119450,1752867055631,-165.98517,0.00020633,2]
[373119452,1752867055641,-151.0,0.00020633,2]
[373119454,1752867055650,-1434.13028282,0.00020659,3]
[373119456,1752867055660,-183.089238,0.00020684,2]
[373119458,1752867055670,-183.089235,0.00020684,2]
[373119460,1752867055679,-1677.0,0.00020692,2]
[373119462,1752867055689,-151.0,0.00020692,2]
[373119464,1752867055699,-151.0,0.000207,4]
[373119466,1752867055709,-1677.0,0.00020701,2]
[373119468,1752867055719,-306.0,0.00020711,2]
[373119470,1752867055728,-5888.0,0.00020714,2]
[373119472,1752867055738,-151.0,0.00020714,2]
[373119474,1752867055747,-1677.0,0.00020725,2]
[373119476,1752867055764,-1664.50815631,0.00020736,2]
[373119478,1752867055774,-1000.0,0.00020772,2]
[373119480,1752867055783,-1677.0,0.00020778,2]
[373119482,1752867055793,-306.0,0.00020795,2]
[373119484,1752867055803,-151.0,0.00020833,2]
[373119486,1752867055812,-1677.0,0.00020861,2]
[373119488,1752867055821,-1677.0,0.00020869,2]
[373119490,1752867055831,-3000.0,0.000209,2]
[373119492,1752867055842,-1021.49,0.00020902,2]
[373119494,1752867055852,-2546.09,0.00020903,2]
[373119496,1752867055861,-1405.34,0.00020903,2]
[373119498,1752867055870,-460.0,0.00020903,2]
[373119500,1752867055879,-543.83,0.00020903,2]
[373119502,1752867055889,-1261.52,0.00020903,2]
[373119504,1752867055898,-1242.65,0.00020903,2]
[373119506,1752867055907,-752.34,0.00020903,2]
[373119508,1752867055917,-715.21,0.00020903,2]
[373119510,1752867055927,-460.0,0.00020903,2]
[373119512,1752867055936,-473.66,0.00020903,2]
[373119514,1752867055946,-460.0,0.00020903,2]
[373119516,1752867055955,-460.0,0.00020903,2]
[373119518,1752867055964,-483.52,0.00020903,2]
[373119520,1752867055975,-460.0,0.00020904,2]
[373119522,1752867055984,-527.96,0.00020904,2]
[373119524,1752867055994,-460.0,0.00020904,2]